[Event "Titled Tuesday Blitz February 14 Early 2023"]
[White "Bodnaruk, Anastasia"]
[Black "Martin, Lewis"]
[WhiteFideId "4181751"]
[BlackFideId "410551"]
[WhiteElo "2350"]
[BlackElo "2135"]
[Result "1-0"]
[Round "08"]
[TimeControl "180+2"]
[Date "2023.02.14"]
[WhiteClock "0:00:08"]
[BlackClock "0:00:13"]

1. e4 {[%clk 0:03:00]}  c5 {[%clk 0:02:59]} 2. Nc3 {[%clk 0:03:00]}  Nc6 {[%clk 0:02:59]} 3. Bb5 {[%clk 0:03:01]}  Nd4 {[%clk 0:02:59]} 4. Bc4 {[%clk 0:03:01]}  a6 {[%clk 0:02:59]} 5. a4 {[%clk 0:02:59]}  e6 {[%clk 0:02:57]} 6. Nge2 {[%clk 0:02:59]}  g6 {[%clk 0:02:51]} 7. Nxd4 {[%clk 0:02:55]}  cxd4 {[%clk 0:02:50]} 8. Ne2 {[%clk 0:02:55]}  Bg7 {[%clk 0:02:46]} 9. d3 {[%clk 0:02:50]}  Ne7 {[%clk 0:02:44]} 10. Bb3 {[%clk 0:02:45]}  O-O {[%clk 0:02:36]} 11. O-O {[%clk 0:02:44]}  d5 {[%clk 0:02:35]} 12. a5 {[%clk 0:02:28]}  b5 {[%clk 0:02:34]} 13. axb6 {[%clk 0:02:18]}  dxe4 {[%clk 0:02:30]} 14. dxe4 {[%clk 0:02:17]}  Qxb6 {[%clk 0:02:28]} 15. Bg5 {[%clk 0:02:12]}  Nc6 {[%clk 0:02:21]} 16. Qd2 {[%clk 0:02:08]}  Bb7 {[%clk 0:02:17]} 17. Bh6 {[%clk 0:02:08]}  Rfd8 {[%clk 0:02:02]} 18. Bxg7 {[%clk 0:02:05]}  Kxg7 {[%clk 0:02:01]} 19. Nc1 {[%clk 0:01:51]}  Nb4 {[%clk 0:01:46]} 20. Re1 {[%clk 0:01:43]}  Rac8 {[%clk 0:01:44]} 21. Nd3 {[%clk 0:01:42]}  Nxd3 {[%clk 0:01:30]} 22. Qxd3 {[%clk 0:01:41]}  e5 {[%clk 0:01:16]} 23. Ra4 {[%clk 0:00:59]}  Rc7 {[%clk 0:01:08]} 24. Rea1 {[%clk 0:00:58]}  Rd6 {[%clk 0:00:43]} 25. Ra5 {[%clk 0:00:56]}  Re7 {[%clk 0:00:37]} 26. f3 {[%clk 0:00:50]}  Bc8 {[%clk 0:00:32]} 27. Kh1 {[%clk 0:00:49]}  f5 {[%clk 0:00:27]} 28. R5a4 {[%clk 0:00:20]}  fxe4 {[%clk 0:00:27]} 29. fxe4 {[%clk 0:00:17]}  Rf6 {[%clk 0:00:27]} 30. h3 {[%clk 0:00:10]}  Bb7 {[%clk 0:00:26]} 31. Kh2 {[%clk 0:00:10]}  Rf4 {[%clk 0:00:25]} 32. Re1 {[%clk 0:00:10]}  Qf6 {[%clk 0:00:23]} 33. Rb4 {[%clk 0:00:09]}  Rf2 {[%clk 0:00:22]} 34. Qg3 {[%clk 0:00:08]}  Ba8 {[%clk 0:00:16]} 35. Rb6 {[%clk 0:00:08]}  Qxb6 {[%clk 0:00:14]} 36. Qxf2 {[%clk 0:00:08]}  Rf7 {[%clk 0:00:13]} 37. Qxf7+ {[%clk 0:00:08]} 1-0


[Site "https://www.chess.com"]

[Event "Titled Tuesday Blitz February 14 Early 2023"]
[White "Zaragatski, Ilja"]
[Black "Alex_Sahakyan2006"]
[WhiteFideId "4655192"]
[WhiteElo "2472"]
[BlackElo "2715"]
[Result "1-0"]
[Round "08"]
[TimeControl "180+2"]
[Date "2023.02.14"]
[WhiteClock "0:00:50"]
[BlackClock "0:00:09"]

1. c4 {[%clk 0:02:56]}  b5 {[%clk 0:02:54]} 2. cxb5 {[%clk 0:02:55]}  a6 {[%clk 0:02:54]} 3. bxa6 {[%clk 0:02:53]}  Bxa6 {[%clk 0:02:50]} 4. Nf3 {[%clk 0:02:53]}  c5 {[%clk 0:02:49]} 5. g3 {[%clk 0:02:53]}  g5 {[%clk 0:02:42]} 6. Nxg5 {[%clk 0:02:49]}  Bb7 {[%clk 0:02:40]} 7. Nf3 {[%clk 0:02:48]}  e5 {[%clk 0:02:39]} 8. d3 {[%clk 0:02:42]}  f5 {[%clk 0:02:37]} 9. Bg2 {[%clk 0:02:39]}  Nf6 {[%clk 0:02:31]} 10. Nc3 {[%clk 0:02:38]}  d6 {[%clk 0:02:28]} 11. O-O {[%clk 0:02:37]}  Rg8 {[%clk 0:02:22]} 12. Nh4 {[%clk 0:02:31]}  Bxg2 {[%clk 0:02:19]} 13. Kxg2 {[%clk 0:02:31]}  f4 {[%clk 0:02:18]} 14. e4 {[%clk 0:02:27]}  Nc6 {[%clk 0:02:01]} 15. Nf5 {[%clk 0:02:18]}  Nd4 {[%clk 0:01:56]} 16. Kh1 {[%clk 0:02:13]}  Qd7 {[%clk 0:01:46]} 17. Nxd4 {[%clk 0:02:09]}  cxd4 {[%clk 0:01:47]} 18. Nd5 {[%clk 0:02:05]}  Nxd5 {[%clk 0:01:42]} 19. Qh5+ {[%clk 0:02:05]}  Qf7 {[%clk 0:01:36]} 20. Qxf7+ {[%clk 0:02:04]}  Kxf7 {[%clk 0:01:37]} 21. exd5 {[%clk 0:02:05]}  f3 {[%clk 0:01:37]} 22. Bd2 {[%clk 0:01:48]}  Bg7 {[%clk 0:01:34]} 23. a4 {[%clk 0:01:41]}  e4 {[%clk 0:01:20]} 24. dxe4 {[%clk 0:01:41]}  d3 {[%clk 0:01:20]} 25. Ra3 {[%clk 0:01:32]}  Rge8 {[%clk 0:01:17]} 26. Rxd3 {[%clk 0:01:31]}  Rxe4 {[%clk 0:01:17]} 27. Rxf3+ {[%clk 0:01:30]}  Kg6 {[%clk 0:01:15]} 28. b3 {[%clk 0:01:30]}  Rc8 {[%clk 0:01:05]} 29. Bf4 {[%clk 0:01:26]}  Rd4 {[%clk 0:00:58]} 30. Bxd6 {[%clk 0:01:24]}  Rxd5 {[%clk 0:00:58]} 31. Bf4 {[%clk 0:01:24]}  Rc2 {[%clk 0:00:57]} 32. Kg2 {[%clk 0:01:22]}  Rb2 {[%clk 0:00:53]} 33. Rc1 {[%clk 0:01:18]}  Bd4 {[%clk 0:00:21]} 34. Rc6+ {[%clk 0:01:15]}  Kh5 {[%clk 0:00:16]} 35. h3 {[%clk 0:01:13]}  Bg7 {[%clk 0:00:16]} 36. g4+ {[%clk 0:01:12]}  Kh4 {[%clk 0:00:16]} 37. Bg3+ {[%clk 0:01:00]}  Kg5 {[%clk 0:00:13]} 38. Rf4 {[%clk 0:01:01]}  Bf6 {[%clk 0:00:07]} 39. h4+ {[%clk 0:00:59]}  Kg6 {[%clk 0:00:06]} 40. Rcxf6+ {[%clk 0:00:57]}  Kg7 {[%clk 0:00:07]} 41. Rf7+ {[%clk 0:00:58]}  Kg8 {[%clk 0:00:07]} 42. Rf8+ {[%clk 0:00:57]}  Kg7 {[%clk 0:00:08]} 43. R4f7+ {[%clk 0:00:57]}  Kg6 {[%clk 0:00:08]} 44. h5+ {[%clk 0:00:54]}  Kg5 {[%clk 0:00:08]} 45. Rg8+ {[%clk 0:00:52]}  Kh6 {[%clk 0:00:09]} 46. Rf6# {[%clk 0:00:50]} 1-0


[Site "https://www.chess.com"]

[Event "Titled Tuesday Blitz February 14 Early 2023"]
[White "Filgueira, Hernan"]
[Black "Starozhilov, Leonid"]
[WhiteFideId "101770"]
[BlackFideId "14106752"]
[WhiteElo "2283"]
[BlackElo "2313"]
[Result "1/2-1/2"]
[Round "08"]
[TimeControl "180+2"]
[Date "2023.02.14"]
[WhiteClock "0:00:21"]
[BlackClock "0:00:13"]

1. e4 {[%clk 0:02:59]}  c5 {[%clk 0:02:59]} 2. Nf3 {[%clk 0:02:59]}  e6 {[%clk 0:03:00]} 3. d3 {[%clk 0:02:57]}  Nc6 {[%clk 0:02:59]} 4. g3 {[%clk 0:02:57]}  g6 {[%clk 0:02:59]} 5. Bg2 {[%clk 0:02:57]}  Bg7 {[%clk 0:03:00]} 6. O-O {[%clk 0:02:57]}  Nge7 {[%clk 0:03:00]} 7. c3 {[%clk 0:02:57]}  O-O {[%clk 0:03:00]} 8. a3 {[%clk 0:02:48]}  d5 {[%clk 0:02:59]} 9. Qe2 {[%clk 0:02:47]}  e5 {[%clk 0:02:48]} 10. b4 {[%clk 0:02:46]}  d4 {[%clk 0:02:23]} 11. b5 {[%clk 0:02:42]}  Na5 {[%clk 0:02:21]} 12. cxd4 {[%clk 0:02:32]}  cxd4 {[%clk 0:02:19]} 13. Bd2 {[%clk 0:02:24]}  Nb3 {[%clk 0:02:11]} 14. Ra2 {[%clk 0:02:24]}  Be6 {[%clk 0:01:58]} 15. Rb2 {[%clk 0:02:23]}  h6 {[%clk 0:01:52]} 16. Bb4 {[%clk 0:02:20]}  b6 {[%clk 0:01:35]} 17. Nbd2 {[%clk 0:02:17]}  Nxd2 {[%clk 0:01:31]} 18. Nxd2 {[%clk 0:02:12]}  Qd7 {[%clk 0:01:30]} 19. f4 {[%clk 0:01:58]}  Rac8 {[%clk 0:01:24]} 20. f5 {[%clk 0:01:46]}  gxf5 {[%clk 0:01:12]} 21. Bxe7 {[%clk 0:01:33]}  Qxe7 {[%clk 0:01:11]} 22. exf5 {[%clk 0:01:33]}  Bd7 {[%clk 0:01:12]} 23. Ne4 {[%clk 0:01:27]}  f6 {[%clk 0:01:11]} 24. a4 {[%clk 0:01:25]}  Rc7 {[%clk 0:01:08]} 25. Rc2 {[%clk 0:01:23]}  Rfc8 {[%clk 0:01:07]} 26. Rxc7 {[%clk 0:01:18]}  Rxc7 {[%clk 0:01:08]} 27. g4 {[%clk 0:01:16]}  Bc8 {[%clk 0:00:43]} 28. h4 {[%clk 0:01:15]}  Bb7 {[%clk 0:00:43]} 29. Qa2+ {[%clk 0:01:01]}  Kh8 {[%clk 0:00:39]} 30. Qe6 {[%clk 0:00:49]}  Qf8 {[%clk 0:00:34]} 31. g5 {[%clk 0:00:26]}  Bxe4 {[%clk 0:00:33]} 32. Bxe4 {[%clk 0:00:25]}  Re7 {[%clk 0:00:33]} 33. Qc6 {[%clk 0:00:24]}  Re8 {[%clk 0:00:28]} 34. g6 {[%clk 0:00:22]}  Rc8 {[%clk 0:00:27]} 35. Qe6 {[%clk 0:00:20]}  Re8 {[%clk 0:00:22]} 36. Qf7 {[%clk 0:00:20]}  Rc8 {[%clk 0:00:18]} 37. Qxf8+ {[%clk 0:00:20]}  Bxf8 {[%clk 0:00:18]} 38. Bc6 {[%clk 0:00:20]}  Kg7 {[%clk 0:00:16]} 39. Kg2 {[%clk 0:00:21]}  a5 {[%clk 0:00:16]} 40. Kf3 {[%clk 0:00:21]}  Ba3 {[%clk 0:00:16]} 41. h5 {[%clk 0:00:20]}  Bb2 {[%clk 0:00:16]} 42. Ke4 {[%clk 0:00:20]}  Rd8 {[%clk 0:00:15]} 43. Rf2 {[%clk 0:00:20]}  Bc3 {[%clk 0:00:15]} 44. Rc2 {[%clk 0:00:20]}  Kf8 {[%clk 0:00:15]} 45. Rg2 {[%clk 0:00:19]}  Kg7 {[%clk 0:00:15]} 46. Bd5 {[%clk 0:00:19]}  Rc8 {[%clk 0:00:14]} 47. Bc6 {[%clk 0:00:19]}  Rd8 {[%clk 0:00:14]} 48. Re2 {[%clk 0:00:18]}  Rd6 {[%clk 0:00:13]} 49. Rc2 {[%clk 0:00:19]}  Rd8 {[%clk 0:00:13]} 50. Rf2 {[%clk 0:00:20]}  Rd6 {[%clk 0:00:13]} 51. Rg2 {[%clk 0:00:21]}  Rd8 {[%clk 0:00:13]} 1/2-1/2


[Site "https://www.chess.com"]

[Event "Titled Tuesday Blitz February 14 Early 2023"]
[White "Skliarov, Viktor"]
[Black "Bas Mas, Jose Joaquin"]
[WhiteFideId "14106736"]
[BlackFideId "22219064"]
[WhiteElo "2383"]
[BlackElo "2197"]
[Result "1-0"]
[Round "08"]
[TimeControl "180+2"]
[Date "2023.02.14"]
[WhiteClock "0:00:37"]
[BlackClock "0:00:36"]

1. e4 {[%clk 0:03:00]}  c5 {[%clk 0:02:59]} 2. Nf3 {[%clk 0:03:01]}  d6 {[%clk 0:02:59]} 3. d4 {[%clk 0:03:01]}  cxd4 {[%clk 0:03:00]} 4. Qxd4 {[%clk 0:03:02]}  Nc6 {[%clk 0:02:58]} 5. Bb5 {[%clk 0:03:02]}  Qa5+ {[%clk 0:02:43]} 6. Nc3 {[%clk 0:03:02]}  Qxb5 {[%clk 0:02:38]} 7. Nxb5 {[%clk 0:03:03]}  Nxd4 {[%clk 0:02:38]} 8. Nfxd4 {[%clk 0:03:03]}  Kd8 {[%clk 0:02:39]} 9. c4 {[%clk 0:03:04]}  g6 {[%clk 0:02:37]} 10. f3 {[%clk 0:03:01]}  Bg7 {[%clk 0:02:36]} 11. Be3 {[%clk 0:03:01]}  Nf6 {[%clk 0:02:31]} 12. Kf2 {[%clk 0:02:59]}  Nd7 {[%clk 0:02:27]} 13. Rhd1 {[%clk 0:02:54]}  a6 {[%clk 0:02:21]} 14. Nc3 {[%clk 0:02:54]}  b6 {[%clk 0:02:18]} 15. Nc6+ {[%clk 0:02:45]}  Ke8 {[%clk 0:01:54]} 16. Nd5 {[%clk 0:02:45]}  Bb7 {[%clk 0:01:54]} 17. Nc7+ {[%clk 0:02:36]}  Kf8 {[%clk 0:01:54]} 18. Nxa8 {[%clk 0:02:37]}  Bxa8 {[%clk 0:01:51]} 19. Nd4 {[%clk 0:02:36]}  e6 {[%clk 0:01:41]} 20. Rd2 {[%clk 0:02:21]}  Ke7 {[%clk 0:01:39]} 21. Rad1 {[%clk 0:02:13]}  Nc5 {[%clk 0:01:32]} 22. Nb3 {[%clk 0:02:03]}  Nb7 {[%clk 0:01:24]} 23. Bxb6 {[%clk 0:01:57]}  Rc8 {[%clk 0:01:24]} 24. c5 {[%clk 0:01:39]}  dxc5 {[%clk 0:01:23]} 25. Rd7+ {[%clk 0:01:38]}  Ke8 {[%clk 0:01:22]} 26. Nxc5 {[%clk 0:01:28]}  Nxc5 {[%clk 0:01:10]} 27. Rd8+ {[%clk 0:01:27]}  Rxd8 {[%clk 0:01:08]} 28. Rxd8+ {[%clk 0:01:28]}  Ke7 {[%clk 0:01:09]} 29. Rxa8 {[%clk 0:01:27]}  Nd3+ {[%clk 0:01:08]} 30. Ke2 {[%clk 0:01:21]}  Nxb2 {[%clk 0:01:04]} 31. Ra7+ {[%clk 0:01:14]}  Ke8 {[%clk 0:01:02]} 32. Rxa6 {[%clk 0:01:12]}  Nc4 {[%clk 0:01:01]} 33. Bc5 {[%clk 0:01:11]}  f5 {[%clk 0:00:58]} 34. Ra7 {[%clk 0:01:08]}  Be5 {[%clk 0:00:55]} 35. Rxh7 {[%clk 0:01:07]}  Kd8 {[%clk 0:00:51]} 36. Rh6 {[%clk 0:00:58]}  Kd7 {[%clk 0:00:48]} 37. h3 {[%clk 0:00:54]}  g5 {[%clk 0:00:45]} 38. exf5 {[%clk 0:00:45]}  exf5 {[%clk 0:00:45]} 39. a4 {[%clk 0:00:45]}  Na5 {[%clk 0:00:41]} 40. Rg6 {[%clk 0:00:41]}  Bf4 {[%clk 0:00:38]} 41. Be3 {[%clk 0:00:41]}  Bd6 {[%clk 0:00:36]} 42. Rxg5 {[%clk 0:00:38]}  f4 {[%clk 0:00:36]} 43. Rxa5 {[%clk 0:00:37]} 1-0


[Site "https://www.chess.com"]

[Event "Titled Tuesday Blitz February 14 Early 2023"]
[White "Cunha, Lucas Aguiar"]
[Black "Toncheva, Nadya"]
[WhiteFideId "2125404"]
[BlackFideId "2924056"]
[WhiteElo "2309"]
[BlackElo "2295"]
[Result "1-0"]
[Round "08"]
[TimeControl "180+2"]
[Date "2023.02.14"]
[WhiteClock "0:00:30"]
[BlackClock "0:00:17"]

1. e4 {[%clk 0:03:00]}  c5 {[%clk 0:03:00]} 2. Nf3 {[%clk 0:02:59]}  e6 {[%clk 0:03:00]} 3. d4 {[%clk 0:03:00]}  cxd4 {[%clk 0:03:01]} 4. Nxd4 {[%clk 0:03:00]}  a6 {[%clk 0:03:02]} 5. Bd3 {[%clk 0:03:00]}  Qc7 {[%clk 0:03:01]} 6. O-O {[%clk 0:02:59]}  Nf6 {[%clk 0:03:01]} 7. Qe2 {[%clk 0:02:59]}  d6 {[%clk 0:02:58]} 8. c4 {[%clk 0:02:57]}  Be7 {[%clk 0:02:58]} 9. Nc3 {[%clk 0:02:57]}  O-O {[%clk 0:02:59]} 10. f4 {[%clk 0:02:55]}  Nbd7 {[%clk 0:02:59]} 11. b4 {[%clk 0:02:55]}  b5 {[%clk 0:02:44]} 12. Bd2 {[%clk 0:02:44]}  bxc4 {[%clk 0:02:42]} 13. Bxc4 {[%clk 0:02:45]}  Bb7 {[%clk 0:02:27]} 14. Kh1 {[%clk 0:02:27]}  Rfc8 {[%clk 0:01:46]} 15. Bb3 {[%clk 0:02:25]}  Qb6 {[%clk 0:01:40]} 16. Nf3 {[%clk 0:02:22]}  Nf8 {[%clk 0:01:26]} 17. f5 {[%clk 0:02:07]}  exf5 {[%clk 0:01:00]} 18. Ng5 {[%clk 0:01:59]}  fxe4 {[%clk 0:00:50]} 19. Bxf7+ {[%clk 0:01:15]}  Kh8 {[%clk 0:00:50]} 20. Ncxe4 {[%clk 0:01:14]}  Nxe4 {[%clk 0:00:36]} 21. Nxe4 {[%clk 0:01:15]}  Rc2 {[%clk 0:00:32]} 22. Nc3 {[%clk 0:00:57]}  Bf6 {[%clk 0:00:30]} 23. Nd5 {[%clk 0:00:41]}  Bxd5 {[%clk 0:00:17]} 24. Bxd5 {[%clk 0:00:41]}  Rac8 {[%clk 0:00:17]} 25. Rad1 {[%clk 0:00:37]}  Qd4 {[%clk 0:00:18]} 26. Bb3 {[%clk 0:00:32]}  Ng6 {[%clk 0:00:17]} 27. Bxc2 {[%clk 0:00:30]} 1-0


[Site "https://www.chess.com"]

[Event "Titled Tuesday Blitz February 14 Early 2023"]
[White "Bettalli, Francesco"]
[Black "Chylewski, Patryk"]
[WhiteFideId "2816453"]
[BlackFideId "1186191"]
[WhiteElo "2252"]
[BlackElo "2281"]
[Result "1-0"]
[Round "08"]
[TimeControl "180+2"]
[Date "2023.02.14"]
[WhiteClock "0:00:47"]
[BlackClock "0:01:05"]

1. d4 {[%clk 0:02:41]}  Nf6 {[%clk 0:02:59]} 2. Nc3 {[%clk 0:02:40]}  d5 {[%clk 0:02:59]} 3. Bf4 {[%clk 0:02:40]}  a6 {[%clk 0:02:59]} 4. e3 {[%clk 0:02:37]}  e6 {[%clk 0:02:57]} 5. a3 {[%clk 0:02:27]}  c5 {[%clk 0:02:57]} 6. dxc5 {[%clk 0:02:24]}  Bxc5 {[%clk 0:02:57]} 7. Nf3 {[%clk 0:02:24]}  O-O {[%clk 0:02:57]} 8. Bd3 {[%clk 0:02:20]}  Nc6 {[%clk 0:02:56]} 9. Ne5 {[%clk 0:02:20]}  Nxe5 {[%clk 0:02:55]} 10. Bxe5 {[%clk 0:02:20]}  Bd6 {[%clk 0:02:54]} 11. Bxd6 {[%clk 0:02:19]}  Qxd6 {[%clk 0:02:55]} 12. O-O {[%clk 0:02:19]}  e5 {[%clk 0:02:51]} 13. e4 {[%clk 0:02:20]}  d4 {[%clk 0:02:51]} 14. Ne2 {[%clk 0:02:20]}  Bd7 {[%clk 0:02:44]} 15. Ng3 {[%clk 0:02:15]}  Rac8 {[%clk 0:02:43]} 16. Qd2 {[%clk 0:02:13]}  Rc7 {[%clk 0:02:42]} 17. Rae1 {[%clk 0:02:10]}  Rfc8 {[%clk 0:02:42]} 18. f4 {[%clk 0:02:09]}  Ng4 {[%clk 0:02:41]} 19. fxe5 {[%clk 0:02:05]}  Qxe5 {[%clk 0:02:39]} 20. Rf3 {[%clk 0:01:44]}  Be6 {[%clk 0:02:27]} 21. h3 {[%clk 0:01:28]}  Ne3 {[%clk 0:02:27]} 22. Nf5 {[%clk 0:01:29]}  Nxc2 {[%clk 0:02:22]} 23. Qg5 {[%clk 0:01:12]}  Nxe1 {[%clk 0:02:15]} 24. Nh6+ {[%clk 0:01:11]}  Kh8 {[%clk 0:02:13]} 25. Qxe5 {[%clk 0:01:11]}  Nxf3+ {[%clk 0:02:05]} 26. gxf3 {[%clk 0:01:10]}  Rc1+ {[%clk 0:01:57]} 27. Kf2 {[%clk 0:01:10]}  Rd8 {[%clk 0:01:45]} 28. Nf5 {[%clk 0:00:51]}  Bxf5 {[%clk 0:01:33]} 29. Qxf5 {[%clk 0:00:52]}  Kg8 {[%clk 0:01:12]} 30. e5 {[%clk 0:00:47]}  g6 {[%clk 0:01:11]} 31. Qg5 {[%clk 0:00:48]}  Re8 {[%clk 0:01:05]} 32. Qxc1 {[%clk 0:00:47]} 1-0


[Site "https://www.chess.com"]

[Event "Titled Tuesday Blitz February 14 Early 2023"]
[White "Malka, Samuel"]
[Black "Souleidis, Georgios"]
[WhiteFideId "20643675"]
[BlackFideId "4206827"]
[WhiteElo "2165"]
[BlackElo "2419"]
[Result "0-1"]
[Round "08"]
[TimeControl "180+2"]
[Date "2023.02.14"]
[WhiteClock "0:00:16"]
[BlackClock "0:00:03"]

1. d4 {[%clk 0:03:00]}  Nf6 {[%clk 0:02:59]} 2. c4 {[%clk 0:03:01]}  g6 {[%clk 0:02:59]} 3. Nc3 {[%clk 0:03:01]}  Bg7 {[%clk 0:03:00]} 4. e4 {[%clk 0:03:02]}  d6 {[%clk 0:03:01]} 5. Nf3 {[%clk 0:03:02]}  O-O {[%clk 0:03:02]} 6. Be2 {[%clk 0:03:03]}  e5 {[%clk 0:03:02]} 7. O-O {[%clk 0:03:03]}  Bg4 {[%clk 0:03:02]} 8. d5 {[%clk 0:03:03]}  a5 {[%clk 0:03:02]} 9. Be3 {[%clk 0:02:59]}  Bd7 {[%clk 0:03:00]} 10. Nd2 {[%clk 0:02:42]}  h5 {[%clk 0:02:59]} 11. h3 {[%clk 0:02:37]}  Na6 {[%clk 0:02:58]} 12. a3 {[%clk 0:02:35]}  Nh7 {[%clk 0:02:52]} 13. Nf3 {[%clk 0:02:09]}  f5 {[%clk 0:02:43]} 14. exf5 {[%clk 0:02:10]}  gxf5 {[%clk 0:02:43]} 15. Kh2 {[%clk 0:01:58]}  e4 {[%clk 0:02:27]} 16. Ne1 {[%clk 0:01:53]}  h4 {[%clk 0:02:04]} 17. f4 {[%clk 0:01:46]}  Kh8 {[%clk 0:01:39]} 18. Nc2 {[%clk 0:01:45]}  Rg8 {[%clk 0:01:38]} 19. Bd4 {[%clk 0:01:45]}  Qe7 {[%clk 0:01:31]} 20. Ne3 {[%clk 0:01:44]}  b6 {[%clk 0:01:25]} 21. Rb1 {[%clk 0:01:44]}  Nc5 {[%clk 0:01:25]} 22. Nb5 {[%clk 0:01:12]}  Rac8 {[%clk 0:00:32]} 23. b4 {[%clk 0:01:08]}  axb4 {[%clk 0:00:32]} 24. axb4 {[%clk 0:01:09]}  Nd3 {[%clk 0:00:32]} 25. Bxd3 {[%clk 0:01:07]}  exd3 {[%clk 0:00:28]} 26. Qxd3 {[%clk 0:01:07]}  Qf7 {[%clk 0:00:24]} 27. Na7 {[%clk 0:01:02]}  Rce8 {[%clk 0:00:21]} 28. Nc6 {[%clk 0:01:01]}  Re4 {[%clk 0:00:20]} 29. Bxg7+ {[%clk 0:00:58]}  Qxg7 {[%clk 0:00:20]} 30. Ng4 {[%clk 0:00:26]}  Bxc6 {[%clk 0:00:16]} 31. dxc6 {[%clk 0:00:26]}  Rd4 {[%clk 0:00:16]} 32. Qe3 {[%clk 0:00:23]}  fxg4 {[%clk 0:00:17]} 33. hxg4 {[%clk 0:00:24]}  Rxc4 {[%clk 0:00:16]} 34. g5 {[%clk 0:00:23]}  Rxc6 {[%clk 0:00:13]} 35. Rf3 {[%clk 0:00:20]}  b5 {[%clk 0:00:09]} 36. Rh3 {[%clk 0:00:20]}  Rc4 {[%clk 0:00:06]} 37. Rxh4 {[%clk 0:00:18]}  Rf8 {[%clk 0:00:06]} 38. g3 {[%clk 0:00:18]}  Qg6 {[%clk 0:00:05]} 39. Rg1 {[%clk 0:00:16]}  Re8 {[%clk 0:00:05]} 40. Qf3 {[%clk 0:00:15]}  Rc2+ {[%clk 0:00:03]} 41. Rg2 {[%clk 0:00:15]}  Rxg2+ {[%clk 0:00:04]} 42. Kxg2 {[%clk 0:00:16]}  Qc2+ {[%clk 0:00:04]} 43. Kh3 {[%clk 0:00:16]}  Qe4 {[%clk 0:00:03]} 44. Qxe4 {[%clk 0:00:15]}  Rxe4 {[%clk 0:00:04]} 45. g6 {[%clk 0:00:16]}  Rxb4 {[%clk 0:00:03]} 46. Rxh7+ {[%clk 0:00:15]}  Kg8 {[%clk 0:00:03]} 47. Rxc7 {[%clk 0:00:16]}  Rc4 {[%clk 0:00:04]} 48. Kg4 {[%clk 0:00:16]}  Rxc7 {[%clk 0:00:03]} 0-1


[Site "https://www.chess.com"]

[Event "Titled Tuesday Blitz February 14 Early 2023"]
[White "Vlassov, Nikolai"]
[Black "Fiorito, Francisco"]
[WhiteFideId "4103360"]
[BlackFideId "180165"]
[WhiteElo "2283"]
[BlackElo "2305"]
[Result "0-1"]
[Round "08"]
[TimeControl "180+2"]
[Date "2023.02.14"]
[WhiteClock "0:00:02"]
[BlackClock "0:00:05"]

1. e4 {[%clk 0:03:00]}  c5 {[%clk 0:02:59]} 2. c3 {[%clk 0:03:00]}  Nf6 {[%clk 0:02:59]} 3. e5 {[%clk 0:03:00]}  Nd5 {[%clk 0:02:59]} 4. d4 {[%clk 0:03:01]}  cxd4 {[%clk 0:03:00]} 5. cxd4 {[%clk 0:03:01]}  d6 {[%clk 0:03:01]} 6. Bc4 {[%clk 0:03:01]}  Nb6 {[%clk 0:03:01]} 7. Bb3 {[%clk 0:03:01]}  Nc6 {[%clk 0:02:53]} 8. e6 {[%clk 0:03:01]}  fxe6 {[%clk 0:02:47]} 9. Nf3 {[%clk 0:03:00]}  Na5 {[%clk 0:02:33]} 10. Bc2 {[%clk 0:02:59]}  Bd7 {[%clk 0:02:30]} 11. Nc3 {[%clk 0:02:26]}  Qc7 {[%clk 0:02:21]} 12. Ng5 {[%clk 0:02:17]}  g6 {[%clk 0:01:51]} 13. Nxh7 {[%clk 0:02:12]}  O-O-O {[%clk 0:01:47]} 14. Bxg6 {[%clk 0:02:04]}  Bg7 {[%clk 0:01:45]} 15. Ng5 {[%clk 0:01:58]}  Rhg8 {[%clk 0:01:33]} 16. Bf7 {[%clk 0:01:56]}  Rgf8 {[%clk 0:01:31]} 17. Nxe6 {[%clk 0:01:40]}  Bxe6 {[%clk 0:01:26]} 18. Bxe6+ {[%clk 0:01:41]}  Kb8 {[%clk 0:01:27]} 19. Be3 {[%clk 0:01:28]}  Nac4 {[%clk 0:01:20]} 20. Qe2 {[%clk 0:01:27]}  Nxe3 {[%clk 0:01:19]} 21. fxe3 {[%clk 0:01:26]}  d5 {[%clk 0:01:16]} 22. Qg4 {[%clk 0:01:13]}  Bh6 {[%clk 0:01:13]} 23. Nb5 {[%clk 0:01:09]}  Qc6 {[%clk 0:00:58]} 24. Qg3+ {[%clk 0:01:08]}  Bf4 {[%clk 0:00:54]} 25. exf4 {[%clk 0:01:03]}  Qxb5 {[%clk 0:00:42]} 26. f5+ {[%clk 0:00:56]}  Ka8 {[%clk 0:00:42]} 27. O-O-O {[%clk 0:00:50]}  Nc4 {[%clk 0:00:27]} 28. Qb3 {[%clk 0:00:43]}  Qa6 {[%clk 0:00:16]} 29. Kb1 {[%clk 0:00:39]}  Rd6 {[%clk 0:00:16]} 30. Qc3 {[%clk 0:00:33]}  Rb6 {[%clk 0:00:17]} 31. b3 {[%clk 0:00:32]}  Na3+ {[%clk 0:00:16]} 32. Kb2 {[%clk 0:00:28]}  Nb5 {[%clk 0:00:13]} 33. Qb4 {[%clk 0:00:25]}  Nd6 {[%clk 0:00:09]} 34. Qc3 {[%clk 0:00:18]}  Qe2+ {[%clk 0:00:08]} 35. Ka1 {[%clk 0:00:12]}  Nb5 {[%clk 0:00:07]} 36. Qb2 {[%clk 0:00:12]}  Qe4 {[%clk 0:00:05]} 37. Rhe1 {[%clk 0:00:11]}  Qf4 {[%clk 0:00:06]} 38. Bxd5 {[%clk 0:00:11]}  Qxf5 {[%clk 0:00:05]} 39. Bf3 {[%clk 0:00:10]}  Nd6 {[%clk 0:00:04]} 40. Rxe7 {[%clk 0:00:10]}  Nc4 {[%clk 0:00:02]} 41. Qc3 {[%clk 0:00:09]}  Nd6 {[%clk 0:00:03]} 42. Rde1 {[%clk 0:00:08]}  Rb8 {[%clk 0:00:03]} 43. R7e5 {[%clk 0:00:07]}  Qf6 {[%clk 0:00:03]} 44. Rc5 {[%clk 0:00:07]}  Qf4 {[%clk 0:00:03]} 45. h3 {[%clk 0:00:07]}  a6 {[%clk 0:00:03]} 46. d5 {[%clk 0:00:07]}  Nb5 {[%clk 0:00:02]} 47. Qe5 {[%clk 0:00:06]}  Qb4 {[%clk 0:00:03]} 48. Re4 {[%clk 0:00:05]}  Qxc5 {[%clk 0:00:02]} 49. Kb2 {[%clk 0:00:03]}  Qa3+ {[%clk 0:00:01]} 50. Kb1 {[%clk 0:00:02]}  Qc5 {[%clk 0:00:02]} 51. Rc4 {[%clk 0:00:03]}  Qf8 {[%clk 0:00:02]} 52. Kb2 {[%clk 0:00:02]}  Qa3+ {[%clk 0:00:02]} 53. Kb1 {[%clk 0:00:02]}  Qf8 {[%clk 0:00:03]} 54. Kb2 {[%clk 0:00:02]}  Nd6 {[%clk 0:00:03]} 55. Rd4 {[%clk 0:00:01]}  Rc8 {[%clk 0:00:03]} 56. Qe6 {[%clk 0:00:01]}  Nc4+ {[%clk 0:00:03]} 57. Rxc4 {[%clk 0:00:01]}  Rxe6 {[%clk 0:00:03]} 58. dxe6 {[%clk 0:00:02]}  Rxc4 {[%clk 0:00:03]} 59. bxc4 {[%clk 0:00:02]}  Qb4+ {[%clk 0:00:04]} 60. Ka1 {[%clk 0:00:02]}  Qxc4 {[%clk 0:00:04]} 61. Bg4 {[%clk 0:00:02]}  Qd4+ {[%clk 0:00:05]} 62. Kb1 {[%clk 0:00:02]}  Qf2 {[%clk 0:00:05]} 0-1


[Site "https://www.chess.com"]